fUST/lending_fUST_20240803
["ID","MTS","AMOUNT","RATE_DAILY","PERIOD"]
[333934783,1722635445374,-500.0,0.00014682,2]
[333934784,1722635445383,-500.0,0.00014683,2]
[333934785,1722635445393,-33351.8647286,0.00014684,2]
[333934786,1722635445402,-4482.78399946,0.00014689,5]
[333934787,1722635445514,-5084.35817742,0.00014689,5]
[333934788,1722635445524,-500.0,0.00014693,2]
[333934789,1722635445534,-1160.37738656,0.00014693,2]
[333934790,1722635445543,-500.0,0.00014693,2]
[333934791,1722635445553,-500.0,0.00014693,2]
[333934792,1722635445565,-500.0,0.00014693,2]
[333934793,1722635445575,-500.0,0.00014693,2]
[333934794,1722635445586,-506.63707034,0.00014693,2]
[333934795,1722635445596,-500.0,0.00014693,2]
[333934796,1722635445606,-500.0,0.00014693,2]
[333934797,1722635445616,-500.0,0.00014693,2]
[333934798,1722635445626,-10215.74262858,0.00014694,2]
[333934799,1722635445639,-1310.4,0.00014694,2]
[333934800,1722635445650,-433.61549201,0.00014694,2]
[333934801,1722635445662,-582.41753839,0.00014694,2]
[333934802,1722635445736,-4718.97601307,0.00014694,2]
[333934803,1722635445747,-5491.93696109,0.00014694,2]
[333934804,1722635445760,-470.49417695,0.00014694,2]
[333934805,1722635445771,-3112.19999999,0.00014694,2]
[333934806,1722635445784,-1525.27877653,0.00014694,2]
[333934807,1722635445797,-311.20545213,0.00014694,2]
[333934808,1722635445809,-60715.73296126,0.00014694,2]
[333934809,1722635445822,-500.0,0.00014793,2]
[333934810,1722635445833,-500.0,0.00014794,2]
[333934811,1722635445844,-500.0,0.00014794,2]
[333934812,1722635445856,-500.0,0.00014794,2]
[333934813,1722635445866,-500.0,0.00014794,2]
[333934814,1722635445877,-500.0,0.00014794,2]
[333934815,1722635445888,-499.66354488,0.00014794,2]
[333934816,1722635445905,-500.0,0.00014794,2]
[333934817,1722635445914,-500.0,0.00014794,2]
[333934818,1722635445923,-500.0,0.00014794,2]
[333934819,1722635445932,-500.0,0.00014794,2]
[333934820,1722635445942,-500.0,0.00014794,2]
[333934821,1722635445951,-500.0,0.00014794,2]
[333934822,1722635445961,-244.79485989,0.00014794,2]
[333934823,1722635445970,-500.0,0.00014794,2]
[333934824,1722635445979,-500.0,0.00014794,2]
[333934825,1722635445989,-500.0,0.00014794,2]
[333934826,1722635445999,-500.0,0.00014794,2]
[333934827,1722635446008,-500.0,0.00014794,2]
[333934828,1722635446018,-1397.34,0.00014794,2]
[333934829,1722635446028,-500.0,0.00014794,2]
[333934830,1722635446039,-608.96,0.00014794,2]
[333934831,1722635446050,-691.97,0.00014794,2]
[333934833,1722635446059,-500.0,0.00014794,2]
[333934835,1722635446069,-500.0,0.00014794,2]
[333934837,1722635446078,-500.0,0.00014794,2]
[333934838,1722635446088,-500.0,0.00014794,2]
[333934839,1722635446098,-500.0,0.00014794,2]
[333934840,1722635446107,-500.0,0.00014794,2]
[333934841,1722635446117,-500.0,0.00014794,2]
[333934842,1722635446126,-500.0,0.00014794,2]
[333934843,1722635446136,-500.0,0.00014794,2]
[333934844,1722635446145,-500.0,0.00014794,2]
[333934845,1722635446155,-500.0,0.00014794,2]
[333934846,1722635446165,-500.0,0.00014794,2]
[333934847,1722635446175,-500.0,0.00014794,2]
[333934848,1722635446185,-500.0,0.00014794,2]
[333934849,1722635446195,-500.0,0.00014794,2]
[333934850,1722635446206,-500.0,0.00014794,2]
[333934851,1722635446215,-500.0,0.00014794,2]
[333934852,1722635446225,-863.05,0.00014794,2]
[333934853,1722635446235,-500.0,0.00014794,2]
[333934854,1722635446245,-500.0,0.00014794,2]
[333934855,1722635446255,-500.0,0.00014794,2]
[333934856,1722635446264,-822.34,0.00014794,2]
[333934857,1722635446274,-500.0,0.00014794,2]
[333934858,1722635446284,-500.0,0.00014794,2]
[333934859,1722635446294,-500.0,0.00014794,2]
[333934860,1722635446305,-500.0,0.00014794,2]
[333934861,1722635446315,-500.0,0.00014794,2]
[333934862,1722635446324,-500.0,0.00014794,2]
[333934863,1722635446335,-500.0,0.00014794,2]
[333934864,1722635446345,-500.0,0.00014794,2]
[333934865,1722635446355,-500.0,0.00014794,2]
[333934866,1722635446364,-500.0,0.00014794,2]
[333934867,1722635446375,-500.0,0.00014794,2]
[333934868,1722635446384,-500.0,0.00014794,2]
[333934869,1722635446395,-500.0,0.00014794,2]
[333934871,1722635446405,-500.0,0.00014794,2]
[333934873,1722635446414,-500.0,0.00014794,2]
[333934875,1722635446425,-500.0,0.00014794,2]
[333934877,1722635446434,-172.4568,0.00014854,2]
[333934879,1722635446444,-152.726701,0.00014854,2]
[333934880,1722635446456,-157.386921,0.00014854,2]
[333934882,1722635446466,-191.433445,0.00014854,2]
[333934884,1722635446476,-159.297404,0.00014854,2]
[333934885,1722635446487,-279.55733604,0.000149,2]
[333934886,1722635446499,-279.55733602,0.000149,2]
[333934887,1722635446510,-279.55733602,0.000149,2]
[333934888,1722635446520,-150.0,0.00014953,2]
[333934889,1722635446529,-506.0,0.00014953,2]
[333934890,1722635446539,-1410.0,0.00014953,2]
[333934891,1722635446549,-212.373,0.00014953,2]
[333934892,1722635446560,-16675.9323643,0.00014957,2]
[333934893,1722635446570,-500.0,0.00014967,2]
[333934894,1722635446580,-500.0,0.00014967,2]
[333934895,1722635446589,-500.0,0.00014967,2]
[333934896,1722635446600,-500.0,0.00014967,2]
[333934897,1722635446610,-500.0,0.00014967,2]
[333934898,1722635446619,-500.0,0.00014967,2]
[333934899,1722635446628,-2127.9650503,0.00015,2]
[333934900,1722635446637,-500.0,0.00015057,2]
[333934901,1722635446647,-500.0,0.00015068,2]
[333934902,1722635446656,-500.0,0.00015068,2]
[333934903,1722635446667,-500.0,0.00015068,2]
[333934904,1722635446677,-500.0,0.00015068,2]
[333934905,1722635446687,-605.05,0.00015068,2]
[333934906,1722635446698,-500.0,0.00015068,2]
[333934907,1722635446707,-500.0,0.00015068,2]
[333934908,1722635446717,-500.0,0.00015068,2]
[333934909,1722635446726,-194.8277019,0.00015068,2]
[333934910,1722635446736,-500.0,0.00015068,2]
[333934911,1722635446745,-500.0,0.00015068,2]
[333934912,1722635446754,-500.0,0.00015068,2]
[333934913,1722635446763,-521.24,0.00015068,2]
[333934914,1722635446773,-1397.34,0.00015068,2]
[333934915,1722635446783,-500.0,0.00015068,2]
[333934916,1722635446881,-608.96,0.00015068,2]
[333934917,1722635446892,-691.97,0.00015068,2]
[333934918,1722635446902,-500.0,0.00015068,2]
[333934919,1722635446912,-555.94,0.00015068,2]
[333934920,1722635446923,-500.0,0.00015068,2]
[333934922,1722635446933,-500.0,0.00015068,2]
[333934923,1722635446944,-635.22,0.00015068,2]
[333934924,1722635446953,-500.0,0.00015068,2]
[333934925,1722635446963,-500.0,0.00015068,2]
[333934927,1722635446974,-543.21,0.00015068,2]
[333934929,1722635446985,-597.07,0.00015068,2]
[333934931,1722635446995,-500.0,0.00015068,2]
[333934932,1722635447004,-500.0,0.00015068,2]
[333934934,1722635447014,-500.0,0.00015068,2]
[333934936,1722635447024,-500.0,0.00015068,2]
[333934937,1722635447035,-863.05,0.00015068,2]
[333934938,1722635447045,-500.0,0.00015068,2]
[333934939,1722635447055,-822.34,0.00015068,2]
[333934940,1722635447065,-500.0,0.00015068,2]
[333934941,1722635447076,-500.0,0.00015068,2]
[333934943,1722635447086,-500.0,0.00015068,2]
[333934944,1722635447096,-500.0,0.00015068,2]
[333934946,1722635447105,-500.0,0.00015068,2]
[333934948,1722635447115,-500.0,0.00015068,2]
[333934950,1722635447126,-500.0,0.00015068,2]
[333934952,1722635447136,-248.12,0.00015068,2]
[333934954,1722635447145,-500.0,0.00015068,2]
[333934955,1722635447155,-500.0,0.00015068,2]
[333934956,1722635447165,-500.0,0.00015068,2]
[333934958,1722635447175,-500.0,0.00015068,2]
[333934960,1722635447185,-500.0,0.00015068,2]
[333934962,1722635447196,-500.0,0.00015068,2]
[333934963,1722635447206,-492.34831513,0.000151,2]
[333934965,1722635447216,-150.112233,0.000151,2]
[333934967,1722635447226,-150.112233,0.000151,2]
[333934969,1722635447236,-500.0,0.00015241,2]
[333934971,1722635447245,-500.0,0.00015241,2]
[333934973,1722635447256,-500.0,0.00015241,2]
[333934974,1722635447265,-500.0,0.00015241,2]
[333934976,1722635447275,-365.76,0.00015341,2]
[333934977,1722635447286,-500.0,0.00015342,2]
[333934979,1722635447296,-500.0,0.00015342,2]
[333934980,1722635447306,-636.06018327,0.00015342,2]
[333934982,1722635447316,-500.0,0.00015342,2]
[333934984,1722635447326,-500.0,0.00015342,2]
[333934986,1722635447335,-500.0,0.00015342,2]
[333934988,1722635447345,-500.0,0.00015342,2]
[333934990,1722635447354,-500.0,0.00015342,2]
[333934991,1722635447364,-1397.34,0.00015342,2]
[333934993,1722635447374,-500.0,0.00015342,2]
[333934994,1722635447384,-608.96,0.00015342,2]
[333934995,1722635447393,-691.97,0.00015342,2]
[333934996,1722635447403,-500.0,0.00015342,2]
[333934998,1722635447412,-500.0,0.00015342,2]
[333934999,1722635447422,-500.0,0.00015342,2]
[333935000,1722635447431,-500.0,0.00015342,2]
[333935001,1722635447441,-610.31964587,0.00015342,2]
[333935002,1722635447452,-500.0,0.00015342,2]
[333935003,1722635447461,-500.0,0.00015342,2]
[333935004,1722635447470,-500.0,0.00015342,2]
[333935005,1722635447480,-500.0,0.00015342,2]
[333935006,1722635447489,-863.05,0.00015342,2]
[333935007,1722635447498,-282.77905154,0.00015342,2]
[333935008,1722635447508,-822.34,0.00015342,2]
[333935009,1722635447517,-500.0,0.00015342,2]
[333935010,1722635447526,-500.0,0.00015342,2]
[333935011,1722635447536,-500.0,0.00015342,2]
[333935012,1722635447545,-500.0,0.00015342,2]
[333935013,1722635447555,-500.0,0.00015342,2]
[333935014,1722635447565,-500.0,0.00015342,2]
[333935015,1722635447576,-500.0,0.00015342,2]
[333935016,1722635447585,-500.0,0.00015342,2]
[333935017,1722635447595,-500.0,0.00015342,2]
[333935018,1722635447604,-500.0,0.00015342,2]
[333935019,1722635447614,-500.0,0.00015342,2]
[333935020,1722635447623,-500.0,0.00015342,2]
[333935021,1722635447633,-16675.9323643,0.00015505,2]
[333935022,1722635447643,-500.0,0.00015515,2]
[333935023,1722635447653,-493.83567772,0.00015515,2]
[333935024,1722635447663,-500.0,0.00015515,2]
[333935025,1722635447672,-500.0,0.00015616,2]
[333935026,1722635447682,-500.0,0.00015616,2]
[333935027,1722635447692,-500.0,0.00015616,2]
[333935028,1722635447704,-500.0,0.00015616,2]
[333935029,1722635447716,-418.83,0.00015616,2]
[333935030,1722635447726,-500.0,0.00015616,2]
[333935031,1722635447739,-1397.34,0.00015616,2]
[333935032,1722635447748,-500.0,0.00015616,2]
[333935033,1722635447758,-608.96,0.00015616,2]
[333935034,1722635447767,-691.97,0.00015616,2]
[333935035,1722635447777,-500.0,0.00015616,2]
[333935036,1722635447786,-500.0,0.00015616,2]
[333935037,1722635447796,-500.0,0.00015616,2]
[333935038,1722635447806,-500.0,0.00015616,2]
[333935039,1722635447819,-500.0,0.00015616,2]
[333935040,1722635447828,-500.0,0.00015616,2]
[333935041,1722635447838,-500.0,0.00015616,2]
[333935042,1722635447847,-500.0,0.00015616,2]
[333935043,1722635447857,-863.05,0.00015616,2]
[333935044,1722635447868,-822.34,0.00015616,2]
[333935045,1722635447878,-500.0,0.00015616,2]
[333935046,1722635447888,-500.0,0.00015616,2]
[333935047,1722635447899,-500.0,0.00015616,2]
[333935048,1722635447909,-500.0,0.00015616,2]
[333935049,1722635447919,-500.0,0.00015616,2]
[333935050,1722635447928,-500.0,0.00015616,2]
[333935051,1722635447938,-581.23516008,0.00015616,2]
[333935052,1722635447952,-500.0,0.00015616,2]
[333935053,1722635447962,-337.74907901,0.00015616,2]
[333935054,1722635447971,-500.0,0.00015616,2]
[333935055,1722635447980,-500.0,0.00015616,2]
[333935056,1722635447990,-500.0,0.00015616,2]
[333935057,1722635447999,-33351.8647286,0.00015697,2]
[333935058,1722635448009,-16675.9323643,0.00015699,2]
[333935059,1722635448018,-150.112233,0.000157,2]
[333935060,1722635448029,-94889.93348497,0.00015707,2]
[333935061,1722635448172,-453.0,0.00013698,2]
[333935062,1722635448279,-47.0,0.00013698,2]
[333935063,1722635448289,-500.0,0.00013698,2]
[333935064,1722635448298,-648.89,0.00013698,2]
[333935065,1722635448308,-98.54433178,0.00013972,2]
[333935066,1722635448319,-401.45566822,0.00013972,2]
[333935067,1722635448329,-2644.76073281,0.00015707,2]
[333935072,1722635636552,845.36555753,9.999e-05,2]
[333935075,1722635676791,611.93757659,9.999e-05,2]
[333935077,1722635749054,845.36555753,9.999e-05,2]
[333935079,1722635843063,845.36555753,9.999e-05,2]
[333935107,1722635953071,845.36555753,9.999e-05,2]
[333935116,1722636060078,845.36555753,9.999e-05,2]
[333935120,1722636139100,157.73503346,9.999e-05,2]
[333935122,1722636160110,845.36555753,9.999e-05,2]
[333935125,1722636254510,845.36555753,9.999e-05,2]
[333935132,1722636377109,845.36555753,9.999e-05,2]
[333935133,1722636387207,845.36555753,9.999e-05,2]
[333935141,1722636498115,845.36555753,9.999e-05,2]
[333935144,1722636583124,845.36555753,9.999e-05,2]
[333935161,1722636633119,-717.97,0.00010959,2]
[333935162,1722636633129,-300.0,0.00011304,2]
[333935163,1722636633139,-300.0,0.00011304,2]
[333935164,1722636633149,-6147.10413554,0.00011305,2]
[333935165,1722636633161,-18752.89586446,0.00011305,2]
[333935166,1722636633171,-250.0,0.00011928,2]
[333935167,1722636633180,-250.0,0.00011961,2]
[333935168,1722636633190,-250.0,0.00011994,2]
[333935169,1722636633201,-250.0,0.00012026,2]
[333935170,1722636633214,-250.0,0.00012059,2]
[333935171,1722636633224,-250.0,0.00012092,2]
[333935172,1722636633234,-250.0,0.00012124,2]
[333935173,1722636633243,-250.0,0.00012157,2]
[333935174,1722636633254,-250.0,0.0001219,2]
[333935175,1722636633263,-250.0,0.00012223,2]
[333935176,1722636633272,-250.0,0.00012255,2]
[333935177,1722636633283,-250.0,0.00012288,2]
[333935178,1722636633294,-250.0,0.00012321,2]
[333935179,1722636633303,-250.0,0.00012353,2]
[333935180,1722636633313,-250.0,0.00012386,2]
[333935182,1722636633323,-250.0,0.00012419,2]
[333935184,1722636633334,-420.0,0.00012435,2]
[333935186,1722636633344,-250.0,0.00012452,2]
[333935187,1722636633353,-250.0,0.00012484,2]
[333935189,1722636633363,-250.0,0.00012517,2]
[333935191,1722636633373,-250.0,0.0001255,2]
[333935193,1722636633382,-2312.36414014,0.000129,2]
[333935196,1722636633404,-126.85135158,0.000129,2]
[333935198,1722636633413,-168.138268,0.00012986,2]
[333935199,1722636633422,-3400.01038042,0.00013688,2]
[333935201,1722636633435,-12230.83028153,0.00013688,2]
[333935394,1722636638726,-1375.0619425,0.00013688,2]
[333935396,1722636638867,-705.39167507,0.00013688,2]
[333935399,1722636638879,-3522.66226836,0.00013688,2]
[333935401,1722636638891,-3779.94199852,0.00013688,2]
[333935403,1722636638902,-653.47,0.00013697,2]
[333935405,1722636638912,-653.47,0.00013697,2]
[333935407,1722636638922,-500.0,0.00013698,2]
[333935410,1722636638933,-500.0,0.00013698,2]
[333935412,1722636638943,-500.0,0.00013698,2]
[333935414,1722636638952,-500.0,0.00013698,2]
[333935416,1722636638962,-500.0,0.00013698,2]
[333935418,1722636638971,-500.0,0.00013698,2]
[333935419,1722636638981,-500.0,0.00013698,2]
[333935422,1722636638991,-560.02860855,0.00013698,2]
[333935424,1722636639001,-500.0,0.00013698,2]
[333935426,1722636639011,-500.0,0.00013698,2]
[333935428,1722636639021,-500.0,0.00013698,2]
[333935430,1722636639030,-500.0,0.00013698,2]
[333935431,1722636639039,-500.0,0.00013698,2]
[333935433,1722636639049,-500.0,0.00013698,2]
[333935435,1722636639058,-503.71713332,0.00013698,2]
[333935437,1722636639067,-500.0,0.00013698,2]
[333935439,1722636639077,-500.0,0.00013698,2]
[333935441,1722636639086,-297.62054279,0.00013698,2]
[333935443,1722636639096,-500.0,0.00013698,2]
[333935445,1722636639106,-500.0,0.00013698,2]
[333935447,1722636639115,-500.0,0.00013698,2]
[333935449,1722636639124,-500.0,0.00013698,2]
[333935451,1722636639134,-500.0,0.00013698,2]
[333935453,1722636639143,-595.89625594,0.00013698,2]
[333935455,1722636639153,-500.0,0.00013698,2]
[333935457,1722636639163,-500.0,0.00013698,2]
[333935459,1722636639172,-500.0,0.00013698,2]
[333935461,1722636639182,-502.51104892,0.00013698,2]
[333935463,1722636639191,-457.39478757,0.00013698,2]
[333935465,1722636639201,-500.0,0.00013698,2]
[333935467,1722636639214,-500.0,0.00013698,2]
[333935469,1722636639224,-500.0,0.00013698,2]
[333935471,1722636639234,-500.0,0.00013698,2]
[333935473,1722636639243,-500.0,0.00013698,2]
[333935475,1722636639253,-177.56488755,0.00013698,2]
[333935477,1722636639263,-500.0,0.00013698,2]
[333935479,1722636639273,-500.0,0.00013698,2]
[333935481,1722636639284,-500.0,0.00013698,2]
[333935483,1722636639293,-500.0,0.00013698,2]
[333935485,1722636639302,-500.0,0.00013698,2]
[333935487,1722636639312,-500.0,0.00013698,2]
[333935489,1722636639322,-500.0,0.00013698,2]
[333935491,1722636639331,-500.0,0.00013698,2]
[333935493,1722636639342,-500.0,0.00013698,2]
[333935495,1722636639351,-508.45396723,0.00013698,2]
[333935497,1722636639360,-500.0,0.00013698,2]
[333935499,1722636639372,-500.0,0.00013698,2]
[333935501,1722636639382,-500.0,0.00013698,2]
[333935503,1722636639391,-500.0,0.00013698,2]
[333935504,1722636639401,-500.0,0.00013698,2]
[333935506,1722636639411,-504.20254421,0.00013698,2]
[333935508,1722636639420,-500.0,0.00013698,2]
[333935510,1722636639430,-500.0,0.00013698,2]
[333935512,1722636639439,-500.0,0.00013698,2]
[333935514,1722636639449,-500.0,0.00013698,2]
[333935516,1722636639459,-500.0,0.00013698,2]
[333935518,1722636639469,-501.77585729,0.00013698,2]
[333935520,1722636639478,-500.0,0.00013698,2]
[333935522,1722636639488,-500.0,0.00013698,2]
[333935524,1722636639497,-500.0,0.00013698,2]
[333935526,1722636639507,-500.0,0.00013698,2]
[333935528,1722636639516,-500.0,0.00013698,2]
[333935530,1722636639526,-500.0,0.00013698,2]
[333935532,1722636639536,-500.0,0.00013698,2]
[333935534,1722636639545,-500.0,0.00013698,2]
[333935536,1722636639555,-500.0,0.00013698,2]
[333935538,1722636639564,-500.0,0.00013698,2]
[333935540,1722636639574,-500.0,0.00013698,2]
[333935542,1722636639584,-446.34328046,0.00013698,2]
[333935544,1722636639594,-500.0,0.00013698,2]
[333935546,1722636639603,-250.5665561,0.00013698,2]
[333935548,1722636639612,-500.0,0.00013698,2]
[333935550,1722636639622,-500.0,0.00013698,2]
[333935552,1722636639631,-500.0,0.00013698,2]
[333935554,1722636639640,-505.12737999,0.00013698,2]
[333935556,1722636639649,-500.0,0.00013698,2]
[333935558,1722636639659,-500.0,0.00013698,2]
[333935560,1722636639668,-500.0,0.00013698,2]
[333935562,1722636639678,-511.45259437,0.00013698,2]
[333935564,1722636639688,-500.0,0.00013698,2]
[333935566,1722636639698,-500.0,0.00013698,2]
[333935568,1722636639707,-500.0,0.00013698,2]
[333935570,1722636639717,-500.0,0.00013698,2]
[333935572,1722636639726,-500.0,0.00013698,2]
[333935574,1722636639738,-500.0,0.00013698,2]
[333935576,1722636639747,-500.0,0.00013698,2]
[333935578,1722636639757,-500.0,0.00013698,2]
[333935580,1722636639766,-500.0,0.00013698,2]
[333935582,1722636639775,-500.0,0.00013698,2]
[333935584,1722636639784,-500.0,0.00013698,2]
[333935585,1722636639794,-500.0,0.00013698,2]
[333935587,1722636639803,-500.0,0.00013698,2]
[333935598,1722636639908,-500.0,0.00013698,2]
[333935600,1722636639919,-500.0,0.00013698,2]
[333935601,1722636639930,-500.0,0.00013698,2]
[333935603,1722636639940,-500.0,0.00013698,2]
[333935605,1722636639950,-500.0,0.00013698,2]
[333935607,1722636639959,-500.0,0.00013698,2]
[333935608,1722636639969,-266.34056533,0.00013698,2]
[333935610,1722636639979,-364.80058449,0.00013698,2]
[333935611,1722636639989,-500.0,0.00013698,2]
[333935612,1722636639998,-500.0,0.00013698,2]
[333935613,1722636640008,-325.25098328,0.00013698,2]
[333935614,1722636640019,-500.0,0.00013698,2]
[333935615,1722636640029,-220.70281175,0.00013698,2]
[333935616,1722636640038,-500.0,0.00013698,2]
[333935617,1722636640048,-500.0,0.00013698,2]
[333935618,1722636640058,-500.0,0.00013698,2]
[333935619,1722636640067,-500.0,0.00013698,2]
[333935620,1722636640077,-500.0,0.00013698,2]
[333935621,1722636640086,-500.0,0.00013698,2]
[333935622,1722636640095,-500.0,0.00013698,2]
[333935624,1722636640106,-500.0,0.00013698,2]
[333935626,1722636640115,-500.0,0.00013698,2]
[333935627,1722636640125,-500.0,0.00013698,2]
[333935628,1722636640135,-500.0,0.00013698,2]
[333935629,1722636640145,-500.0,0.00013698,2]
[333935630,1722636640154,-305.7322057,0.00013698,2]
[333935631,1722636640170,-194.2677943,0.00013698,2]
[333935632,1722636640180,-500.0,0.00013698,2]
[333935633,1722636640190,-500.0,0.00013698,2]
[333935634,1722636640200,-500.0,0.00013698,2]
[333935635,1722636640214,-500.0,0.00013698,2]
[333935636,1722636640225,-562.18402606,0.00013698,2]
[333935637,1722636640235,-500.0,0.00013698,2]
[333935638,1722636640245,-500.0,0.00013698,2]
[333935639,1722636640256,-718.35,0.00013698,2]
[333935640,1722636640267,-500.0,0.00013698,2]
[333935641,1722636640277,-500.0,0.00013698,2]
[333935642,1722636640288,-500.0,0.00013698,2]
[333935644,1722636640299,-500.0,0.00013698,2]
[333935645,1722636640310,-500.0,0.00013698,2]
[333935646,1722636640320,-500.0,0.00013698,2]
[333935647,1722636640330,-500.0,0.00013698,2]
[333935648,1722636640340,-500.0,0.00013698,2]
[333935649,1722636640350,-500.0,0.00013698,2]
[333935651,1722636640360,-500.0,0.00013698,2]
[333935653,1722636640369,-506.25486992,0.00013698,2]
[333935655,1722636640379,-500.0,0.00013698,2]
[333935657,1722636640389,-500.0,0.00013698,2]
[333935658,1722636640399,-998.12,0.00013698,2]
[333935661,1722636640409,-500.0,0.00013698,2]
[333935662,1722636640418,-641.32,0.00013698,2]
[333935664,1722636640428,-500.0,0.00013698,2]
[333935666,1722636640438,-500.0,0.00013698,2]
[333935668,1722636640447,-500.0,0.00013698,2]
[333935670,1722636640458,-500.0,0.00013698,2]
[333935671,1722636640468,-500.0,0.00013698,2]
[333935672,1722636640477,-500.0,0.00013698,2]
[333935673,1722636640487,-500.0,0.00013698,2]
[333935674,1722636640497,-500.0,0.00013698,2]
[333935675,1722636640506,-500.0,0.00013698,2]
[333935676,1722636640516,-500.0,0.00013698,2]
[333935677,1722636640527,-1041.19,0.00013698,2]
[333935678,1722636640537,-500.0,0.00013698,2]
[333935679,1722636640547,-500.0,0.00013698,2]
[333935680,1722636640557,-500.0,0.00013698,2]
[333935681,1722636640566,-500.0,0.00013698,2]
[333935682,1722636640578,-500.0,0.00013698,2]
[333935683,1722636640588,-500.0,0.00013698,2]
[333935684,1722636640598,-500.0,0.00013698,2]
[333935685,1722636640609,-500.0,0.00013698,2]
[333935686,1722636640620,-500.0,0.00013698,2]
[333935687,1722636640631,-500.0,0.00013698,2]
[333935688,1722636640642,-500.0,0.00013698,2]
[333935689,1722636640652,-500.0,0.00013698,2]
[333935690,1722636640663,-500.0,0.00013698,2]
[333935691,1722636640675,-500.0,0.00013698,2]
[333935692,1722636640686,-500.0,0.00013698,2]
[333935693,1722636640696,-500.0,0.00013698,2]
[333935694,1722636640706,-500.0,0.00013698,2]
[333935695,1722636640718,-500.0,0.00013698,2]
[333935696,1722636640728,-500.0,0.00013698,2]
[333935697,1722636640738,-500.0,0.00013698,2]
[333935698,1722636640747,-500.0,0.00013698,2]
[333935699,1722636640756,-509.81610971,0.00013698,2]
[333935700,1722636640766,-500.0,0.00013698,2]
[333935701,1722636640776,-869.7,0.00013698,2]
[333935702,1722636640786,-869.7,0.00013698,2]
[333935703,1722636640796,-869.7,0.00013698,2]
[333935704,1722636640806,-869.7,0.00013698,2]
[333935705,1722636640815,-500.0,0.00013698,2]
[333935706,1722636640826,-500.0,0.00013698,2]
[333935707,1722636640836,-500.0,0.00013698,2]
[333935708,1722636640845,-500.0,0.00013698,2]
[333935709,1722636640855,-500.0,0.00013698,2]
[333935710,1722636640866,-500.0,0.00013698,2]
[333935711,1722636640876,-500.0,0.00013698,2]
[333935712,1722636640886,-500.0,0.00013698,2]
[333935713,1722636640896,-500.0,0.00013698,2]
[333935714,1722636640905,-500.0,0.00013698,2]
[333935715,1722636640914,-500.0,0.00013698,2]
[333935716,1722636640924,-500.0,0.00013698,2]
[333935717,1722636640936,-500.0,0.00013698,2]
[333935718,1722636640945,-500.0,0.00013698,2]
[333935719,1722636640956,-500.0,0.00013698,2]
[333935720,1722636640968,-500.0,0.00013698,2]
[333935721,1722636640978,-500.0,0.00013698,2]
[333935722,1722636640989,-500.0,0.00013698,2]
[333935723,1722636640998,-641.20408328,0.00013698,2]
[333935724,1722636641008,-500.0,0.00013698,2]
[333935725,1722636641017,-500.0,0.00013698,2]
[333935726,1722636641027,-500.0,0.00013698,2]
[333935727,1722636641037,-500.0,0.00013698,2]